bitfinex/quotes_SOLUSD_20251128
["timestamp","ask_amount","ask_price","bid_price","bid_amount"]
[1764340977019,10.18148653,142.42,142.38,6.82759684]
[1764340977210,10.18148653,142.42,142.38,0.68]
[1764340977603,10.18148653,142.42,142.37,0.28432314]
[1764340977805,0.67,142.41,142.37,0.28432314]
[1764340978009,6.81759684,142.41,142.36,8.80994492]
[1764340978340,6.14759684,142.38,142.32,0.68]
[1764340978625,16.978864,142.4,142.33,8.80994492]
[1764340978826,10.18382902,142.38,142.33,14.95754176]
[1764340979327,27.74247489,142.38,142.33,14.95754176]
[1764340979510,33.89007173,142.38,142.33,8.80994492]
[1764340980311,27.74247489,142.38,142.33,14.95754176]
[1764340980533,7.02382902,142.38,142.34,0.14216157]
[1764340980721,7.02296509,142.39,142.35,6.14759684]
[1764340981033,7.02296509,142.39,142.35,14.95754176]
[1764340981328,41.24965319,142.45,142.39,8.80994492]
[1764340981529,10.18049985,142.44,142.4,6.14759684]
[1764340982112,10.18049985,142.44,142.36,9.09426806]
[1764340982322,27.73188884,142.44,142.38,0.28432314]
[1764340982631,0.67,142.42,142.37,9.09426806]
[1764340982931,10.18197879,142.41,142.37,14.95754176]
[1764340983307,10.18197879,142.41,142.38,6.14759684]
[1764340984522,10.85197879,142.41,142.36,15.83434068]
[1764340984837,16.308864,142.38,142.33,14.95754176]
[1764340985018,3.16,142.37,142.33,14.95754176]
[1764340985623,3.16,142.37,142.33,8.80994492]
[1764340985805,7.02444506,142.36,142.33,14.95754176]
[1764340986419,7.02444506,142.36,142.34,6.14759684]
[1764340986616,7.02444506,142.36,142.33,14.95754176]
[1764340986911,53.15468758,142.47,142.36,8.80994492]
[1764340986912,10.18247191,142.4,142.36,8.80994492]
[1764340987237,10.18247191,142.4,142.38,6.14759684]
[1764340988022,10.18247191,142.4,142.36,6.14759684]
[1764340988233,10.18247191,142.4,142.35,8.80994492]
[1764340988415,10.18247191,142.4,142.36,6.14759684]
[1764340988619,10.18247191,142.4,142.37,6.14759684]
[1764340989238,10.85247191,142.4,142.37,6.14759684]
[1764340989447,28.40865168,142.4,142.36,6.14759684]
[1764340989614,0.67,142.39,142.33,7.02546375]
[1764340989814,27.73865168,142.4,142.35,6.14759684]
[1764340990040,27.73865168,142.4,142.36,0.68]
[1764340990222,3.83,142.4,142.36,6.14759684]
[1764340990429,3.16,142.4,142.36,6.82759684]
[1764340990628,3.16,142.41,142.38,6.14759684]
[1764340990828,7.02106409,142.43,142.4,6.14759684]
[1764340991144,19.468864,142.44,142.4,6.14759684]
[1764340991327,0.67,142.48,142.43,6.14759684]
[1764340991530,7.01754385,142.5,142.47,6.14759684]
[1764340991731,40.87026749,142.5,142.46,6.14759684]
[1764340991918,16.978864,142.5,142.46,6.14759684]
[1764340992119,0.67,142.5,142.46,6.14759684]
[1764340992319,0.67,142.5,142.42,0.28432314]
[1764340992320,6.14759684,142.48,142.42,6.14759684]
[1764340992533,3.16,142.47,142.44,6.14759684]
[1764340992842,3.16,142.47,142.42,0.69]
[1764340993047,7.01951424,142.46,142.43,6.14759684]
[1764340993423,3.16,142.47,142.43,6.14759684]
[1764340993743,24.5666343,142.47,142.43,6.14759684]
[1764340993945,7.01855989,142.48,142.45,6.14759684]
[1764340994122,7.01855989,142.48,142.46,6.14759684]
[1764340994523,7.01855989,142.48,142.45,6.14759684]
[1764340994844,19.468864,142.49,142.45,6.14759684]
[1764340995029,16.308864,142.49,142.46,6.14759684]
[1764340995230,7.01772085,142.5,142.47,6.14759684]
[1764340995736,7.01772085,142.5,142.48,6.14759684]
[1764340995942,7.01713865,142.51,142.48,6.14759684]
[1764340996342,7.67713865,142.51,142.47,8.80994492]
[1764340996551,0.66,142.5,142.45,6.14759684]
[1764340996858,0.66,142.54,142.46,8.80994492]
[1764340997030,6.14759684,142.61,142.47,6.43191998]
[1764340997234,6.14759684,142.56,142.49,0.28432314]
[1764340997539,3.16,142.56,142.51,6.14759684]
[1764340997954,3.82,142.56,142.51,6.14759684]
[1764340998172,0.66,142.56,142.52,6.14759684]
[1764340998457,19.468864,142.56,142.53,6.14759684]
[1764340998866,3.16,142.56,142.53,6.14759684]
[1764340999160,24.55278848,142.55,142.51,6.14759684]
[1764340999352,0.66,142.55,142.51,6.14759684]
[1764340999525,0.66,142.55,142.49,9.75426806]
[1764340999726,3.82,142.55,142.5,6.14759684]
[1764341000166,0.66,142.54,142.49,15.2418649]
[1764341000335,0.66,142.54,142.47,0.66]
[1764341000336,6.14759684,142.53,142.47,0.66]
[1764341000530,3.16,142.52,142.48,14.95754176]
[1764341000725,3.16,142.53,142.5,6.14759684]
[1764341001258,7.01655907,142.52,142.49,6.14759684]
[1764341002034,7.67655907,142.52,142.48,8.80994492]
[1764341002249,24.55795676,142.52,142.48,6.14759684]
[1764341002441,0.66,142.51,142.47,8.80994492]
[1764341002650,0.66,142.51,142.48,6.14759684]
[1764341003449,7.01754385,142.5,142.48,6.14759684]
[1764341003759,27.72140349,142.5,142.45,6.14759684]
[1764341003932,0.66,142.49,142.46,6.14759684]
[1764341004332,27.72140349,142.5,142.48,6.14759684]
[1764341004333,7.01754385,142.5,142.48,6.14759684]
[1764341004567,7.01685125,142.52,142.49,6.14759684]
[1764341004776,17.53806144,142.55,142.51,15.2418649]
[1764341005055,7.01360639,142.58,142.54,6.14759684]
[1764341005266,23.32148672,142.6,142.57,6.14759684]
[1764341005437,7.01262272,142.6,142.59,6.14759684]
[1764341006140,7.01262272,142.6,142.58,6.14759684]
[1764341006336,7.01163932,142.62,142.59,6.14759684]
[1764341006559,7.01163932,142.62,142.6,6.14759684]
[1764341007154,7.01163932,142.62,142.59,0.28432314]
[1764341007466,7.01163932,142.62,142.58,9.46994492]
[1764341007467,24.53901703,142.63,142.58,9.46994492]
[1764341007676,25.19901703,142.63,142.58,6.14759684]
[1764341007964,6.14759684,142.61,142.55,15.2418649]
[1764341008173,3.16,142.6,142.55,15.2418649]
[1764341008342,9.96759684,142.6,142.54,6.14759684]
[1764341008541,6.80759684,142.59,142.54,6.14759684]
[1764341008959,3.16,142.58,142.55,6.14759684]
[1764341009465,7.01409833,142.57,142.54,6.14759684]
[1764341009638,7.01409833,142.57,142.54,6.43191998]
[1764341010268,3.82,142.58,142.54,6.43191998]
[1764341010477,3.16,142.58,142.54,6.43191998]
[1764341010749,3.16,142.58,142.52,0.66]
[1764341011043,27.70590083,142.59,142.54,9.51341682]
[1764341011358,27.70590083,142.59,142.52,0.66]
[1764341011359,3.16,142.59,142.55,9.51341682]
[1764341011767,3.16,142.59,142.54,9.51341682]
[1764341012241,12.67341682,142.59,142.54,9.51341682]
[1764341012440,13.17341682,142.59,142.54,9.51341682]
[1764341012641,0.5,142.58,142.54,9.51341682]
[1764341012871,3.16,142.59,142.55,9.51341682]
[1764341013163,16.308864,142.57,142.53,9.51341682]
[1764341013356,24.5510662,142.56,142.51,9.51341682]
[1764341013560,12.67341682,142.55,142.5,9.51341682]
[1764341013864,3.66,142.55,142.49,9.51341682]
[1764341014071,3.66,142.55,142.5,9.51341682]
[1764341014445,0.5,142.54,142.5,9.51341682]
[1764341014870,24.5510662,142.56,142.52,9.51341682]
[1764341015075,3.16,142.55,142.52,9.51341682]
[1764341015373,7.01606679,142.53,142.51,9.51341682]
[1764341015867,7.01606679,142.53,142.5,9.51341682]
[1764341016165,24.55623377,142.53,142.49,18.32336174]
[1764341016352,24.55623377,142.53,142.49,8.80994492]
[1764341016553,7.01606679,142.53,142.49,10.17341682]
[1764341016755,7.01606679,142.53,142.5,9.51341682]
[1764341017099,24.55623377,142.53,142.5,9.51341682]
[1764341017267,25.05623377,142.53,142.49,9.51341682]
[1764341017646,24.55623377,142.53,142.47,0.94432314]
[1764341017841,0.5,142.52,142.48,9.51341682]
[1764341018062,24.55623377,142.53,142.48,9.51341682]
[1764341018261,25.05623377,142.53,142.48,10.17341682]
[1764341018457,25.05623377,142.53,142.48,9.51341682]
[1764341018867,24.55623377,142.53,142.48,9.51341682]
[1764341019069,0.5,142.52,142.47,9.51341682]
[1764341019259,3.16,142.51,142.47,9.51341682]
[1764341019455,7.01754385,142.5,142.47,9.51341682]
[1764341019669,3.16,142.51,142.47,9.51341682]
[1764341019867,10.17716892,142.51,142.48,9.51341682]
[1764341020062,10.17716892,142.51,142.48,10.17341682]
[1764341020270,7.01716892,142.51,142.48,10.17341682]
[1764341020471,10.17716892,142.51,142.48,10.17341682]
[1764341020767,10.17716892,142.51,142.5,9.51341682]
[1764341021276,27.7197975,142.51,142.49,9.51341682]
[1764341021677,7.01716892,142.51,142.5,9.51341682]
[1764341021884,16.308864,142.54,142.5,9.65557839]
[1764341022070,7.01632637,142.53,142.52,9.51341682]
[1764341022465,7.01632637,142.53,142.51,0.7]
[1764341022674,7.01632637,142.53,142.51,9.51341682]
[1764341022981,7.51632637,142.53,142.5,9.51341682]
[1764341023167,7.01632637,142.53,142.5,9.51341682]
[1764341023483,25.05649335,142.53,142.49,9.51341682]
[1764341023857,24.55649335,142.53,142.51,9.51341682]
[1764341024058,27.71649335,142.53,142.51,9.51341682]
[1764341024252,24.55649335,142.53,142.51,9.51341682]
[1764341024456,7.01632637,142.53,142.51,9.51341682]
[1764341024658,7.01632637,142.53,142.51,10.21341682]
[1764341024971,7.01632637,142.53,142.51,9.51341682]
[1764341025463,7.01632637,142.53,142.5,18.32336174]
[1764341025967,7.01632637,142.53,142.51,10.21341682]
[1764341026171,7.01632637,142.53,142.52,9.51341682]
[1764341026359,7.01632637,142.53,142.49,9.79426806]
[1764341026561,7.01632637,142.53,142.52,9.51341682]
[1764341027183,7.01632637,142.53,142.51,9.51341682]
[1764341027378,7.01557457,142.54,142.51,9.51341682]
[1764341027789,10.15557457,142.54,142.52,9.51341682]
[1764341027989,7.01557457,142.54,142.52,0.7]
[1764341028198,7.01557457,142.54,142.53,9.51341682]
[1764341028990,24.55337415,142.55,142.53,10.21341682]
[1764341029169,24.55337415,142.55,142.54,10.21341682]
[1764341029689,24.55337415,142.55,142.54,9.51341682]
[1764341030888,27.69337415,142.55,142.54,9.51341682]
[1764341031668,10.15508242,142.55,142.54,9.51341682]
[1764341031863,10.15508242,142.55,142.51,9.50994492]
[1764341032067,10.15508242,142.55,142.54,9.51341682]
[1764341032688,7.01478816,142.56,142.54,10.21341682]
[1764341032882,3.14,142.58,142.55,10.21341682]
[1764341032883,7.01424512,142.57,142.55,10.21341682]
[1764341033096,26.4626659,142.58,142.56,9.51341682]
[1764341033300,43.99668189,142.58,142.57,9.51341682]
[1764341033676,3.14,142.58,142.57,9.51341682]
[1764341034183,10.15360639,142.58,142.57,9.51341682]
[1764341034384,7.01360639,142.58,142.57,9.51341682]
[1764341034971,10.15324016,142.59,142.57,9.51341682]
[1764341035302,28.18602647,142.59,142.57,9.51341682]
[1764341035502,24.54602647,142.59,142.57,9.51341682]
[1764341035798,3.14,142.58,142.57,9.51341682]
[1764341036397,10.15360639,142.58,142.57,9.51341682]
[1764341036691,7.01360639,142.58,142.57,9.51341682]
[1764341037083,10.15360639,142.58,142.56,9.51341682]
[1764341037274,33.84231663,142.59,142.56,9.51341682]
[1764341037275,16.308864,142.59,142.56,9.51341682]
[1764341037494,3.14,142.58,142.57,9.51341682]
[1764341037674,3.14,142.58,142.54,0.7]
[1764341037875,3.14,142.58,142.56,9.51341682]
[1764341038283,40.85488769,142.59,142.57,9.51341682]
[1764341038880,3.14,142.58,142.57,9.51341682]
[1764341039799,3.14,142.58,142.56,9.51341682]
[1764341040293,7.01409833,142.57,142.56,9.51341682]
[1764341041178,7.01409833,142.57,142.51,7.30124179]
[1764341041384,25.04934417,142.57,142.53,9.51341682]
[1764341041584,25.04934417,142.57,142.54,9.51341682]
[1764341042078,0.5,142.56,142.54,9.51341682]
[1764341042278,26.46394642,142.55,142.54,9.51341682]
[1764341042687,26.46394642,142.55,142.51,0.98432314]
[1764341042992,26.46394642,142.55,142.54,9.51341682]
[1764341043504,26.46394642,142.55,142.52,10.21341682]
[1764341043704,9.51341682,142.53,142.48,0.7]
[1764341044003,3.14,142.52,142.48,10.21341682]
[1764341044205,3.14,142.52,142.49,9.51341682]
[1764341044400,3.14,142.52,142.49,10.21341682]
[1764341044699,7.01705143,142.51,142.49,10.21341682]
[1764341045986,7.01705143,142.51,142.49,0.7]
[1764341046585,7.01655907,142.52,142.49,0.7]
[1764341046799,10.15655907,142.52,142.49,0.7]
[1764341048012,7.01655907,142.52,142.48,0.28432314]
[1764341048214,7.01655907,142.52,142.5,9.51341682]
[1764341048391,7.01655907,142.52,142.49,10.21341682]
[1764341048592,34.57137358,142.52,142.47,10.22341682]
[1764341048800,34.57137358,142.52,142.46,8.80994492]
[1764341048801,10.01341682,142.51,142.46,8.80994492]
[1764341049092,9.51341682,142.49,142.45,0.71]
[1764341050116,7.01852891,142.48,142.45,0.71]
[1764341051117,24.5648512,142.48,142.45,0.71]
[1764341051301,24.5648512,142.48,142.44,9.51341682]
[1764341051491,24.5648512,142.48,142.44,10.19341682]
[1764341052322,24.5648512,142.48,142.44,9.51341682]
[1764341052498,24.5648512,142.48,142.45,0.68]
[1764341052698,27.7048512,142.48,142.45,0.68]
[1764341052992,37.21826802,142.48,142.43,18.32336174]
[1764341053203,37.71826802,142.48,142.43,19.00336174]
[1764341053408,37.71826802,142.48,142.44,0.68]
[1764341053894,27.7048512,142.48,142.44,0.68]
[1764341054095,3.14,142.47,142.44,10.19341682]
[1764341054298,3.14,142.47,142.44,0.68]
[1764341055014,7.01951424,142.46,142.44,0.68]
[1764341055208,7.01951424,142.46,142.43,9.48994492]
[1764341055405,7.01951424,142.46,142.44,0.68]
[1764341055607,7.01951424,142.46,142.43,19.00336174]
[1764341056028,7.01951424,142.46,142.44,0.68]
[1764341057420,42.87801249,142.54,142.46,8.80994492]
[1764341057629,12.65341682,142.53,142.48,9.51341682]
[1764341057923,16.308864,142.5,142.47,10.19341682]
[1764341058114,19.448864,142.5,142.47,10.19341682]
[1764341058426,19.448864,142.5,142.48,0.68]
[1764341058630,24.55465075,142.54,142.49,9.51341682]
[1764341058828,3.14,142.53,142.49,9.51341682]
[1764341059025,19.448864,142.53,142.49,0.68]
[1764341059222,19.448864,142.53,142.49,10.19341682]
[1764341059412,7.01655907,142.52,142.49,0.68]
[1764341059606,7.01655907,142.52,142.5,0.68]
[1764341059808,7.01459034,142.56,142.5,10.47773996]
[1764341060005,0.5,142.55,142.45,16.308864]
[1764341060202,9.51341682,142.52,142.46,19.14552331]
[1764341060426,12.65341682,142.52,142.47,10.19341682]
[1764341060703,12.65341682,142.52,142.47,0.68]
[1764341060930,12.65341682,142.52,142.48,0.68]
[1764341061133,7.01705143,142.51,142.48,0.68]
[1764341061333,7.01508242,142.55,142.5,9.51341682]
[1764341061511,7.01508242,142.55,142.53,9.51341682]
[1764341061706,7.01508242,142.55,142.53,0.68]
[1764341061905,7.01508242,142.55,142.5,0.82216157]
[1764341061906,34.5662053,142.55,142.5,0.82216157]
[1764341062312,34.5662053,142.55,142.5,0.68]
[1764341062313,3.14,142.54,142.5,0.68]
[1764341063015,7.01606679,142.53,142.51,9.51341682]
[1764341063215,7.01606679,142.53,142.5,10.19341682]
[1764341063718,7.01606679,142.53,142.5,0.68]
[1764341063920,7.51606679,142.53,142.49,8.80994492]
[1764341064739,17.02948361,142.53,142.49,9.51994492]
[1764341065040,16.52948361,142.53,142.49,9.51994492]
[1764341065214,7.01606679,142.53,142.49,9.51994492]
[1764341065538,10.15606679,142.53,142.49,9.51994492]
[1764341067037,20.16948361,142.53,142.49,9.51994492]
[1764341067213,10.15606679,142.53,142.49,9.51994492]
[1764341067534,19.66948361,142.53,142.49,9.51994492]
[1764341067933,10.15606679,142.53,142.49,9.51994492]
[1764341068139,9.51341682,142.52,142.46,0.71]
[1764341068345,10.01341682,142.52,142.46,9.51341682]
[1764341068636,0.5,142.52,142.47,0.71]
[1764341068832,37.20965059,142.53,142.48,9.51341682]
[1764341069038,34.06965059,142.53,142.48,9.51341682]
[1764341069214,3.14,142.52,142.48,10.22341682]
[1764341069409,13.15341682,142.52,142.47,8.80994492]
[1764341069610,12.65341682,142.52,142.47,9.51341682]
[1764341069848,3.14,142.52,142.48,0.71]
[1764341070319,7.01705143,142.51,142.48,10.22341682]
[1764341070515,7.01705143,142.51,142.48,6.86266698]
[1764341071037,7.01705143,142.51,142.47,6.43699012]
[1764341071038,24.55968001,142.51,142.47,6.43699012]
[1764341071228,7.01705143,142.51,142.48,6.15266698]
[1764341071545,7.01705143,142.51,142.47,15.95693504]
[1764341071837,24.55968001,142.51,142.47,15.95693504]
[1764341072330,25.05968001,142.51,142.47,9.51994492]
[1764341072528,25.05968001,142.51,142.47,0.71]
[1764341072860,22.46153098,142.48,142.42,8.80994492]
[1764341073023,22.46153098,142.48,142.41,3.14]
[1764341073024,6.15266698,142.46,142.41,3.85]
[1764341073431,6.15266698,142.46,142.42,0.71]
[1764341073772,12.30533396,142.46,142.42,0.71]
[1764341073975,6.15266698,142.45,142.42,0.71]
[1764341074267,7.02049985,142.44,142.42,0.71]
[1764341074637,6.15266698,142.46,142.43,0.14216157]
[1764341074842,8.75590755,142.52,142.42,0.71]
[1764341074843,3.14,142.52,142.46,9.09426806]
[1764341075177,16.308864,142.5,142.47,6.86266698]
[1764341075336,16.308864,142.5,142.46,15.24693504]
[1764341075662,16.308864,142.5,142.48,0.71]
[1764341076359,7.01803635,142.49,142.48,0.71]
[1764341076659,24.56312723,142.49,142.46,0.71]
[1764341076836,24.56312723,142.49,142.47,0.71]
[1764341077535,33.85579421,142.49,142.44,0.71]
[1764341077735,6.15266698,142.48,142.44,0.71]
[1764341078566,7.01902154,142.47,142.44,0.71]
[1764341078738,7.01871677,142.48,142.44,0.71]
[1764341078934,24.56503906,142.48,142.44,0.71]
[1764341079672,7.01871677,142.48,142.44,0.71]
[1764341080052,25.06503906,142.48,142.44,0.71]
[1764341080360,31.21770604,142.48,142.44,0.71]
[1764341080553,7.01951424,142.46,142.44,0.71]
[1764341082055,7.01951424,142.46,142.44,0.71]
[1764341082964,7.01951424,142.46,142.44,6.86266698]
[1764341083462,7.01951424,142.46,142.45,0.69]
[1764341083836,7.01951424,142.46,142.42,15.83111652]
[1764341084043,7.01951424,142.46,142.43,15.93693504]
[1764341084540,7.01951424,142.46,142.44,0.69]
[1764341084955,24.56734521,142.47,142.44,0.69]
[1764341086561,34.36001219,142.47,142.42,0.69]
[1764341086767,31.22001219,142.47,142.43,0.69]
[1764341087063,47.53385077,142.47,142.43,0.69]
[1764341087267,6.15266698,142.45,142.41,3.83]
[1764341087654,6.15266698,142.45,142.42,0.69]
[1764341088055,6.15266698,142.43,142.4,8.80994492]
[1764341088265,9.29266698,142.43,142.39,0.79]
[1764341088563,6.15266698,142.42,142.39,0.79]
[1764341089143,9.29266698,142.43,142.39,0.79]
[1764341089353,7.02148574,142.42,142.39,0.79]
[1764341089564,45.31463516,142.44,142.39,0.79]
[1764341089767,7.02088777,142.44,142.41,0.28432314]
[1764341089950,7.02088777,142.44,142.41,6.43699012]
[1764341090263,25.12242484,142.46,142.42,0.69]
[1764341090468,11.94994492,142.46,142.42,6.84266698]
[1764341090676,9.29266698,142.49,142.44,6.15266698]
[1764341090874,18.96882541,142.48,142.44,0.28432314]
[1764341091077,25.12149239,142.48,142.45,0.69]
[1764341091374,19.448864,142.49,142.45,0.69]
[1764341091577,40.56414288,142.49,142.45,0.69]
[1764341091865,47.58233742,142.49,142.45,0.69]
[1764341092572,6.65266698,142.48,142.42,6.84266698]
[1764341092745,22.46153098,142.46,142.42,0.69]
[1764341092949,22.46153098,142.46,142.42,0.97432314]
[1764341093254,25.60153098,142.46,142.42,0.97432314]
[1764341093456,7.02000702,142.45,142.42,0.69]
[1764341093678,24.57002457,142.45,142.42,0.69]
[1764341093870,26.46847293,142.46,142.42,0.69]
[1764341094073,3.14,142.46,142.42,6.84266698]
[1764341094448,23.32773185,142.48,142.43,6.84266698]
[1764341094672,46.31238766,142.48,142.43,0.69]
[1764341094962,2.29833352,142.46,142.42,9.09426806]
[1764341095264,2.29833352,142.47,142.41,11.10827844]
[1764341095475,24.56829986,142.46,142.43,0.69]
[1764341096852,24.56829986,142.46,142.43,0.97432314]
[1764341096853,7.01951424,142.46,142.43,0.97432314]
[1764341097477,7.01951424,142.46,142.43,0.69]
[1764341097673,9.81784776,142.46,142.42,0.28432314]
[1764341097975,2.29833352,142.45,142.41,8.80994492]
[1764341098157,2.29833352,142.44,142.4,0.28432314]
[1764341098347,2.29833352,142.43,142.39,0.79]
[1764341098550,9.32161596,142.43,142.39,0.1]
[1764341098747,9.32161596,142.43,142.39,0.79]
[1764341099170,7.02328244,142.43,142.39,0.79]
[1764341099577,7.02148574,142.42,142.39,0.79]
[1764341100166,14.04436005,142.43,142.39,0.79]
[1764341100354,2.79833352,142.42,142.39,0.1]
[1764341100672,34.73684197,142.43,142.39,0.79]
[1764341100878,31.59684197,142.43,142.39,6.95152241]
[1764341101066,31.59684197,142.43,142.39,0.79]
[1764341102081,6.16152241,142.41,142.39,0.1]
[1764341102281,9.30152241,142.4,142.39,0.1]
[1764341102753,19.948864,142.4,142.39,1e-08]
[1764341102953,26.11038641,142.4,142.39,1e-08]
[1764341103168,0.28432314,142.39,142.33,0.1]
[1764341103351,6.16152241,142.34,142.33,0.1]
[1764341103653,7.02543206,142.34,142.33,1e-08]
[1764341103853,16.82695447,142.34,142.33,1e-08]
[1764341104050,16.50256704,142.34,142.33,1e-08]
[1764341104253,19.64256704,142.34,142.33,1e-08]
[1764341104477,10.34104463,142.34,142.33,1e-08]
[1764341104659,19.64256704,142.34,142.33,1e-08]
[1764341104855,35.95143104,142.34,142.33,1e-08]
[1764341105055,19.64256704,142.34,142.33,1e-08]
[1764341105554,35.95143104,142.34,142.33,1e-08]
[1764341105765,6.16152241,142.3,142.29,0.1]
[1764341105956,9.80152241,142.3,142.29,0.1]
[1764341106154,25.61038641,142.3,142.29,0.1]
[1764341106360,26.11038641,142.3,142.29,0.1]
[1764341106554,16.808864,142.3,142.29,0.1]
[1764341106755,26.11038641,142.3,142.29,0.1]
[1764341106956,9.80152241,142.3,142.29,0.1]
[1764341107268,16.308864,142.27,142.25,0.1]
[1764341107477,13.19090523,142.26,142.25,0.1]
[1764341107659,13.69090523,142.26,142.25,0.1]
[1764341107862,7.52938282,142.26,142.25,0.1]
[1764341108058,7.02938282,142.26,142.25,0.1]
[1764341108361,0.5,142.3,142.25,0.1]
[1764341108362,17.56736853,142.31,142.26,8.80994492]
[1764341108767,30.75786985,142.3,142.27,0.69]
[1764341109087,6.16152241,142.28,142.25,0.79]
[1764341109451,9.30152241,142.29,142.25,0.79]
[1764341109658,7.02839471,142.28,142.25,0.79]
[1764341110266,16.308864,142.31,142.27,6.16152241]
[1764341110460,0.5,142.38,142.29,6.44584555]
[1764341110666,37.10924216,142.42,142.29,0.28432314]
[1764341110667,32.3114743,142.34,142.29,0.28432314]
[1764341110898,6.16152241,142.3,142.27,0.7]
[1764341111379,6.16152241,142.3,142.25,9.60994492]
[1764341111589,16.308864,142.27,142.25,0.1]
[1764341112363,16.308864,142.27,142.25,0.8]
[1764341112994,31.4224929,142.27,142.25,0.1]
[1764341113163,37.58401531,142.27,142.25,0.1]
[1764341113359,31.4224929,142.27,142.25,0.82]
[1764341113580,16.308864,142.27,142.25,0.82]
[1764341113788,6.16152241,142.28,142.26,9.09426806]
[1764341113993,6.16152241,142.28,142.27,15.25579047]
[1764341113994,5.44152241,142.28,142.27,15.25579047]
[1764341114282,6.16152241,142.38,142.28,9.09426806]
[1764341114461,6.16152241,142.37,142.32,6.16152241]
[1764341114872,29.33190882,142.37,142.32,0.28432314]
[1764341115182,23.17038641,142.37,142.32,6.44584555]
[1764341115883,6.16152241,142.37,142.32,6.44584555]
[1764341116065,13.18498076,142.38,142.33,8.80994492]
[1764341116257,6.86152241,142.37,142.32,0.28432314]
[1764341116469,6.86152241,142.36,142.31,8.80994492]
[1764341116998,33.86595036,142.38,142.34,6.44584555]
[1764341117166,7.72187221,142.42,142.37,6.44584555]
[1764341117363,15.83181713,142.42,142.38,6.16152241]
[1764341117561,8.80994492,142.42,142.41,6.44584555]
[1764341117869,0.7,142.49,142.41,6.44584555]
[1764341118068,6.16152241,142.48,142.43,9.09426806]
[1764341118282,24.02691028,142.49,142.43,15.25579047]
[1764341118465,0.7,142.48,142.43,15.25579047]
[1764341118784,0.7,142.48,142.42,6.16152241]
[1764341119088,6.86152241,142.48,142.42,6.16152241]
[1764341119394,6.16152241,142.47,142.41,6.44584555]
[1764341119704,7.01951424,142.46,142.41,5.13054555]
[1764341119987,19.448864,142.49,142.44,6.44584555]
[1764341120184,3.14,142.49,142.44,6.44584555]
[1764341120379,17.54416566,142.5,142.46,0.28432314]
[1764341120586,7.01705143,142.51,142.49,8.80994492]
[1764341120780,7.01705143,142.51,142.49,14.97146733]
[1764341121290,7.01705143,142.51,142.49,8.80994492]
[1764341121493,13.87857384,142.51,142.48,0.28432314]
[1764341121791,13.87857384,142.51,142.44,15.25579047]
[1764341121792,6.16152241,142.5,142.44,15.25579047]
[1764341121965,25.25968001,142.51,142.46,6.44584555]
[1764341122160,25.25968001,142.51,142.44,8.80994492]
[1764341122161,6.16152241,142.49,142.44,8.80994492]
[1764341122361,6.86152241,142.5,142.44,8.80994492]
[1764341122677,6.16152241,142.49,142.44,8.80994492]
[1764341122883,6.86152241,142.49,142.44,8.80994492]
[1764341123085,0.7,142.48,142.44,8.80994492]
[1764341123292,7.01902154,142.47,142.44,8.80994492]
[1764341123471,20.68500923,142.5,142.45,8.95210649]
[1764341123472,17.54500923,142.5,142.45,8.95210649]
[1764341123789,17.54500923,142.5,142.45,15.25579047]
[1764341123989,7.01754385,142.5,142.47,6.16152241]
[1764341124178,7.01655907,142.52,142.48,9.09426806]
[1764341124378,7.01617836,142.53,142.48,9.09426806]
[1764341124570,7.01617836,142.53,142.48,15.25579047]
[1764341125070,7.71617836,142.53,142.48,15.25579047]
[1764341125273,7.71617836,142.53,142.48,6.44584555]
[1764341125573,13.17770077,142.53,142.48,0.28432314]
[1764341125787,13.17770077,142.53,142.48,9.09426806]
[1764341125788,6.86152241,142.52,142.48,9.09426806]
[1764341125989,0.7,142.52,142.48,9.09426806]
[1764341126568,6.16152241,142.5,142.46,0.28432314]
[1764341126785,6.16152241,142.5,142.46,9.09426806]
[1764341127079,23.17038641,142.52,142.46,15.25579047]
[1764341127281,6.16152241,142.5,142.46,8.80994492]
[1764341127497,6.16152241,142.47,142.41,7.02185803]
[1764341127680,6.16152241,142.45,142.39,6.16152241]
[1764341127996,0.7,142.46,142.38,9.30152241]
[1764341128302,0.7,142.46,142.39,8.80994492]
[1764341128488,6.16152241,142.44,142.39,8.80994492]
[1764341128870,6.86152241,142.43,142.38,3.14]
[1764341129202,6.16152241,142.42,142.38,3.14]
[1764341129375,0.7,142.42,142.36,9.09426806]
[1764341129581,13.18399432,142.4,142.36,15.83438848]